[Event "Chess.com Global Championship 2022 - Fi"]
[Site "Chess.com"]
[Date "2022.11.07"]
[Round "3"]
[White "Nihal, Sarin"]
[Black "So, Wesley"]
[Result "0-1"]
[WhiteElo "2670"]
[BlackElo "2760"]
[ECO "A50"]
[EventDate "2022.??.??"]
[Annotator "rafael"]
[PlyCount "86"]
[Beauty "7422932422665"]
[EventType "team-tourn"]
[TimeControl "900+2"]

1.d4 Nf6 2.c4 e6 3.Bf4 {Nihal repeats the same variation that gave him an important win in his match against Giri in the semifinals.} 3...d5 4.cxd5 Nxd5 5.Bg3 c5 6.e4 Nf6 7.Nd2 Qxd4 {So is prepared and plays this critical move. In my analysis of Sarin vs. Giri, I wondered why nobody had ever tried this.} ( 7...cxd4 {was the move chosen by Giri in the aforementioned game.} ) 8.Ngf3 Qd8 9.e5 Nd5 {Where does White's compensation come from $2 Mainly in the space advantage granted by the pawn structure and in the possibility of an attack on the kingside. If the attack works, then the pawn won't be missed. But So is one of the best defenders in the world (if not the best).} 10.a3 {White could develop the bishop on d3 immediately, without worrying about the knight jump to b4. Honestly, it won't make that much of a difference, as a3 will come in handy sooner or later.} ( 10.Bd3 ) 10...Be7 11.Bd3 Bd7 $1 {Castling before White would be dangerous because of the possibility of an attack with h2-h4. So plays a useful move and waits for White to castle.} ( 11...O-O $6 12.h4 $1 {Now there are ideas related to Bxh7 followed by Ng5 and the h1-rook comes to play.} ) 12.Qe2 a6 $1 {I really like this move. The main idea is to play Bb5 at some point, even if it's giving the pawn back. With that, Black avoids a mating attack because, without the d3-bishop, it doesn't exist. Perhaps White, recovering the pawn, will achieve equality, but let's remember that So needed only two more draws to decide the match. For him, the most important thing was to play solid chess.} 13.O-O O-O ( 13...Bb5 {immediately was also possible.} 14.Bxb5+ axb5 15.Qxb5+ Qd7 16.Qe2 O-O {with a roughly equal position.} ) 14.Rad1 Bb5 $1 15.Nc4 {Risky, but the best chance to fight for a win. In case of} ( 15.Bxb5 axb5 16.Qxb5 {Black can force the exchange of queens with} 16...Qb6 $1 ) 15...Nc6 ( 15...Nd7 $1 {is more accurate since the knight is going to b6.} 16.h4 Bxc4 $1 17.Bxc4 N7b6 18.Bd3 c4 $1 19.Bxc4 ( 19.Bb1 c3 {with a clear advantage.} ) 19...Nxc4 20.Qxc4 Rc8 {The triumph of Black's strategy: Giving the pawn back and playing a game with a clear positional advantage (thanks to the knight on d5) and without risks.} ) 16.h4 Na5 17.Qe4 g6 18.Ne3 $2 ( 18.Nd6 $1 {Is the only way to fight for compensation.} 18...c4 $5 ( 18...Bxd3 19.Rxd3 c4 20.Rxd5 $1 {It is better to sacrifice than to accept the material.} ( 20.Nxc4 Nxc4 21.Qxc4 Rc8 {and Black has a comfortable advantage.} ) 20...exd5 21.Qxd5 {with an unclear position, but White has compensation for the exchange.} ) 19.Bb1 $1 ( 19.Nxc4 Bxc4 20.Bxc4 Nxc4 21.Qxc4 Rc8 $15 ) 19...c3 20.Rfe1 cxb2 21.h5 Nc3 22.Qg4 Nxd1 23.hxg6 hxg6 {It seems that White has nothing more than a draw.} 24.Bxg6 fxg6 25.Qxg6+ Kh8 26.Qh6+ {with a perpetual check.} ) 18...Nxe3 19.Qxe3 ( 19.fxe3 {Doesn't help since Black can force the exchange of queens after} 19...Qd5 $1 {The endgame after} 20.Qxd5 exd5 21.Bxb5 axb5 22.Rxd5 Rfd8 {is close to winning because of the better pawn structure.} ) 19...Qc7 {Black is now a clean pawn since White cannot create dangerous threats in the kingside. So plays the remainder of the game with admirable precision.} 20.Nd2 {Trying to bring the knight to e4 and then f6, but So keeps a cool head.} 20...Bxd3 21.Qxd3 Rfd8 22.Qe3 Nc6 $1 23.Ne4 Nd4 $1 {The knight heads to f5.} 24.Nf6+ Kg7 25.Bf4 Nf5 26.Qh3 Kh8 {Black has other good options, but the move played is more than enough. Now 27...Bxf6 is threatened.} ( 26...Rxd1 27.Rxd1 Rd8 ) ( 26...h5 ) 27.Ne4 Rxd1 28.Rxd1 Rd8 29.Nd6 ( 29.Rd6 $1 {The computer gives this flashy move as the only chance, but I doubt it would have changed the final result.} ) 29...Kg8 $1 30.h5 g5 $1 {Now the game is over. The d6-knight can be captured, and Black can even play h7-h6 if he wants to close the kingside. Nihal decides to sacrifice a piece in desperation.} 31.h6 gxf4 32.Qg4+ Kf8 33.Nxf5 Rxd1+ 34.Qxd1 exf5 {Since a loss in this game means the match is over, White decides to play a few more moves.} 35.Qd3 Qxe5 36.Qd7 Qd6 37.Qc8+ Bd8 38.Qxf5 Qxh6 39.Qxc5+ Kg7 40.Qd5 Qb6 41.b4 h6 42.Qe5+ Qf6 43.Qd5 b6 {Congratulations to GM Wesley So for yet another achievement in his brilliant career $1} 0-1

[Event "E Women's Candidates Tournament 2022"]
[Site "Chess.com"]
[Date "2022.11.10"]
[Round "2"]
[White "Tan, Zhongyi"]
[Black "Goryachkina, Aleksandra"]
[Result "1-0"]
[WhiteElo "2518"]
[BlackElo "2584"]
[ECO "D52"]
[EventDate "2022.??.??"]
[Annotator "rafael"]
[PlyCount "79"]
[Beauty "7697005025290"]
[EventType "team-tourn"]
[EventCountry "FID"]
[TimeControl "5400+30"]

1.d4 d5 2.c4 c6 3.Nf3 Nf6 4.Nc3 e6 5.Bg5 Nbd7 6.e3 Qa5 {The Cambridge-Springs Variation is a more solid choice for Black than the complications of the Botvinnik System with 6...dxc4. For those interested in classic games with this system, I suggest studying games 7, 9 and 11 of the match Capablanca vs. Alekhine.} 7.cxd5 ( 7.Nd2 {is also a popular choice.} ) 7...Nxd5 8.Rc1 h6 {It's usually difficult to know if the ...h6 move is useful; I have doubts about this in several defenses. Many players prefer to take on c3 right away. Others choose 8...Bb4.} ( 8...Nxc3 9.bxc3 Ba3 10.Rc2 b6 {is similar to the game.} ) ( 8...Bb4 9.a3 Bxc3+ ( 9...Nxc3 10.axb4 $1 {[%c_effect b4;square;b4;type;GreatFind;persistent;true]} ) 10.bxc3 {with a complicated fight ahead.} ) 9.Bh4 Nxc3 10.bxc3 Ba3 11.Rc2 b6 $1 {[%c_effect b6;square;b6;type;GreatFind;persistent;true] This plan is essential for Black: playing the bishop to a6 and simplifying the position a bit.} 12.Nd2 $5 {[%c_effect d2;square;d2;type;Interesting;persistent;true] A relatively rare move, but one that has been tried in some correspondence games.} ( 12.Be2 Ba6 13.O-O Bxe2 14.Rxe2 O-O 15.c4 {leads to a typical middlegame for this variation. Black is solid, but White has more space. Ding-Duda, Goldmoney (rapid) 2021} ) 12...Ba6 13.c4 {The most natural move.} ( 13.Nc4 Qa4 ) ( 13.Bc4 O-O 14.O-O c5 {In the only game played in this position, the GM of White tried an interesting quality sacrifice with} 15.d5 $5 {[%c_effect d5;square;d5;type;Interesting;persistent;true]} 15...exd5 16.Bxd5 Bxf1 17.Nxf1 {with the idea of bringing the knight to the kingside and creating an attack since Black's queen and bishop are out of play. This worked in the game, but the computer always finds some path to equality. Iturrizaga Bonelli-Ghazarian, Castelldefels 2021.} ) 13...O-O ( 13...Be7 $5 {[%c_effect e7;square;e7;type;Interesting;persistent;true]} 14.Bxe7 Kxe7 15.Be2 c5 16.O-O cxd4 17.exd4 Rhd8 {with a roughly equal position in Barkov-Martynov, ICCF email 2017.} ) 14.Bd3 c5 15.O-O cxd4 16.exd4 Rfe8 17.Qe2 Rac8 $6 {[%c_effect c8;square;c8;type;Inaccuracy;persistent;true] This move is inaccurate and leads to problems. The correct path is shown in one of the correspondence games.} ( 17...Bb4 $1 {[%c_effect b4;square;b4;type;GreatFind;persistent;true]} 18.Rd1 Rac8 {with equality in Haapamaeki-Raivio, ICCF email 2018.} ) 18.c5 $1 {[%c_effect c5;square;c5;type;GreatFind;persistent;true] There are two possible doubles for the d2-knight: one on c4 and one on d6.} 18...Qa4 $6 {[%c_effect a4;square;a4;type;Inaccuracy;persistent;true] This move makes things worse.} ( 18...Nb8 {is also not enough:} 19.Ne4 $1 {[%c_effect e4;square;e4;type;GreatFind;persistent;true] A strong computer suggestion.} ( 19.Bxa6 Qxa6 20.Qxa6 Nxa6 21.Nc4 Bxc5 22.dxc5 Rxc5 {Black has some drawing chances.} ) 19...Bxd3 20.Qxd3 {The point is that Black cannot capture on c5:} 20...bxc5 21.Nf6+ $1 {[%c_effect f6;square;f6;type;GreatFind;persistent;true]} 21...gxf6 22.Bxf6 {with a decisive attack.} ) ( 18...Bxd3 19.Qxd3 Bb4 $1 {[%c_effect b4;square;b4;type;GreatFind;persistent;true] This move is probably what Goryachkina missed.} ( 19...b5 $6 {[%c_effect b5;square;b5;type;Inaccuracy;persistent;true]} 20.Ne4 ) ( 19...bxc5 20.Nc4 Qa6 21.Qxa3 Qxa3 22.Nxa3 cxd4 23.Rfc1 {with good winning chances for White.} ) 20.Nc4 Qa6 21.a3 Ba5 ( 21...bxc5 $5 {[%c_effect c5;square;c5;type;Interesting;persistent;true]} 22.axb4 cxb4 {is also possible. This a better version for Black of the piece sacrifice that occurs in many lines.} ) 22.Qb3 $1 {[%c_effect b3;square;b3;type;GreatFind;persistent;true]} 22...bxc5 23.Qa4 Nb6 $1 {[%c_effect b6;square;b6;type;GreatFind;persistent;true]} 24.Qxa5 Qxa5 25.Nxa5 cxd4 {Black has two pawns for the piece and drawing chances, although White is happy with this position.} ) 19.Bxa6 Qxc2 20.Bxc8 Rxc8 21.Qa6 $1 {[%c_effect a6;square;a6;type;GreatFind;persistent;true] A very unpleasant move. Black has no good squares for the rook.} 21...Rc7 ( 21...Rb8 22.c6 $1 {[%c_effect c6;square;c6;type;GreatFind;persistent;true]} 22...Qxc6 23.Qxa3 {wins a piece.} ) ( 21...Ra8 22.Qb7 Rf8 23.Qxd7 Qxd2 24.c6 {and the c-pawn decides the game.} ) ( 21...Re8 22.Qb5 $1 {[%c_effect b5;square;b5;type;GreatFind;persistent;true]} 22...Qxd2 23.Qxd7 {again followed by the advance of the c-pawn.} ) ( 21...Rf8 22.Qxa3 ( 22.Nf3 {is probably even better.} ) 22...Qxd2 23.c6 Qxd4 24.cxd7 Qxd7 {This endgame is winning for White.} ) 22.Bg3 $6 {[%c_effect g3;square;g3;type;Inaccuracy;persistent;true]} ( 22.Bd8 $1 {[%c_effect d8;square;d8;type;GreatFind;persistent;true] This is a better way to convert the advantage.} 22...Nb8 ( 22...Nxc5 23.dxc5 Rxc5 24.Nb3 Rd5 25.Qxa3 Rxd8 26.Qxa7 {with a winning position.} ) ( 22...Rc6 23.Qb7 $1 {[%c_effect b7;square;b7;type;GreatFind;persistent;true] Black loses material.} ) 23.Qxa3 Rc8 24.Qxa7 Rxd8 ( 24...Qxd2 {doesn't solve the problems.} 25.Bxb6 Qxd4 26.c6 $1 {[%c_effect c6;square;c6;type;GreatFind;persistent;true]} ) 25.Qxb6 Rf8 26.Nf3 Qxa2 27.Ne5 {with an easily winning endgame a pawn up.} ) 22...e5 23.Nf3 $1 {[%c_effect f3;square;f3;type;GreatFind;persistent;true] The best.} ( 23.Nc4 $2 {[%c_effect c4;square;c4;type;Mistake;persistent;true]} 23...Qd3 $1 {[%c_effect d3;square;d3;type;GreatFind;persistent;true]} ) 23...Bxc5 $1 {[%c_effect c5;square;c5;type;GreatFind;persistent;true] Black has to sacrifice a piece.} ( 23...Qxa2 24.Nxe5 Nxe5 25.Bxe5 {and White wins since Black's pieces are poorly placed and the c-pawn is ready to advance.} ) 24.dxc5 Nxc5 25.Qa3 f6 {Let's pause and assess the position. White has a material advantage (bishop for two pawns), but it is not easy to convert: the bishop on g3 is not good.} 26.Rc1 Qg6 27.Nh4 {I don't like this move. A knight on the rim is dim, someone said.} ( 27.h3 {I'd rather play a simple move giving some air for the king.} ) 27...Qf7 ( 27...Qe4 {is an interesting alternative.} ) 28.Rd1 ( 28.f4 $5 {[%c_effect f4;square;f4;type;Interesting;persistent;true] Maybe this is a better way to justify White's previous move.} ) 28...Rd7 29.Rxd7 Qxd7 30.h3 e4 $1 {[%c_effect e4;square;e4;type;GreatFind;persistent;true] Now the h4-knight is in trouble. Black prepares g5.} 31.Bb8 $1 {[%c_effect b8;square;b8;type;GreatFind;persistent;true] A very good, practical decision. White gives back material to capture Black's queenside. The computer suggestion is absurd for a human.} ( 31.Ng6 Kf7 32.Nf4 g5 {Every time I analyze games for the Game of the Day, I go through the game on my physical board, thinking about what happened and writing some notes. Only after that I check the game with the computer. I analyzed this variation and stopped here, since the knight is lost. But the machine continues.} 33.Ne2 $1 {[%c_effect e2;square;e2;type;GreatFind;persistent;true]} 33...Qd1+ 34.Kh2 Qxe2 35.Qxa7+ Kg6 36.Qxb6 {Somehow the computer is happy with this position for White. Not very human.} ) 31...g5 ( 31...a5 32.g4 $1 {[%c_effect g4;square;g4;type;GreatFind;persistent;true] And now h4-knight is no longer in danger.} ) 32.Qxa7 gxh4 $6 {[%c_effect h4;square;h4;type;Inaccuracy;persistent;true] Now Black is in deep trouble again.} ( 32...Qxa7 {leads to an endgame that is probably winning for White after} 33.Bxa7 gxh4 34.Bxb6 Na6 35.Kf1 Kf7 36.Ke2 Ke6 37.a4 {with bishop against knight, the passed a-pawn, and the weaknesses on the kingside, I believe White is going to win.} ) ( 32...Qe6 $1 {[%c_effect e6;square;e6;type;GreatFind;persistent;true] This subtle move is the best.} 33.Ng6 Nd7 {It turns out the knight is lost anyway.} 34.Nf4 ( 34.h4 {This attempt to defend the knight doesn't work.} 34...Kg7 35.h5 Qd5 {and Black is ready to play Qd1 with a draw.} ) 34...gxf4 35.Bxf4 {White still has some advantage in this endgame, but the drawing chances are good.} ) 33.Qxb6 Ne6 ( 33...e3 $1 {[%c_effect e3;square;e3;type;GreatFind;persistent;true] is a desperate attempt to activate the knight and generate some counterplay.} 34.fxe3 Ne4 ) 34.a4 {The a-pawn decides the game. White's moves are easy now.} 34...Kf7 35.a5 Nd4 36.Qc7 $1 {[%c_effect c7;square;c7;type;GreatFind;persistent;true] Not allowing the counterplay after} ( 36.a6 Ne2+ 37.Kh2 Qd1 {Even though White is probably still winning after} 38.f3 ) 36...Ke8 37.Qc4 Qb7 38.Qg8+ {Winning material and the match.} 38...Kd7 39.Qf7+ Kc6 ( 39...Kc8 40.Qe8# ) 40.Qc4+ 1-0

[Event "Speed Chess Championship 2022 - Evento "]
[Site "Chess.com"]
[Date "2022.11.23"]
[Round "3"]
[White "Erigaisi, Arjun"]
[Black "Caruana, Fabiano"]
[Result "0-1"]
[WhiteElo "2718"]
[BlackElo "2766"]
[ECO "C42"]
[EventDate "2022.??.??"]
[Annotator "rafael"]
[PlyCount "94"]
[Beauty "7152194289671"]
[EventType "team-tourn"]
[TimeControl "60+1"]

1.e4 e5 2.Nf3 Nf6 {Caruana played the Petroff in several games during the match. This is one of the most reliable defenses for Black and it's no wonder that many elite players are happy playing it.} 3.Nxe5 d6 4.Nf3 Nxe4 5.Nc3 {This line has a good reputation. Caruana has great experience in it, having played this position with both White and Black, including a game in the World Championship match against Carlsen.} 5...Nxc3 6.dxc3 Be7 7.Bd3 ( 7.Be3 {The aforementioned game followed:} 7...O-O 8.Qd2 Nd7 9.O-O-O Nf6 10.Bd3 c5 11.Rhe1 Be6 12.Kb1 Qa5 13.c4 Qxd2 14.Bxd2 h6 {and the game was later drawn. Carlsen - Caruana, London 2018.} ) 7...O-O 8.O-O Nd7 9.Re1 Nc5 10.Bf4 {If it had been a game at normal time control, Erigaisi would probably have moved the d3-bishop to avoid the exchange. In a bullet game, this is just a minor detail. Or is it not $2 As we will see, the pair of bishops was crucial to Caruana's victory.} 10...Nxd3 11.Qxd3 Re8 12.h3 h6 13.Re2 Bf6 14.Rae1 Rxe2 15.Rxe2 Bd7 {The position is objectively equal, although it's usually better to be the one with the bishops.} 16.Nd2 {Trying to activate the knight.} 16...Qf8 {A nice move, preparing to bring the rook to e8.} 17.Qf3 ( 17.Ne4 {is better.} 17...Be7 18.c4 Bc6 19.b3 {with equal play.} ) 17...Bc6 18.Ne4 Be7 19.Qg3 f5 $1 {[%c_effect f5;square;f5;type;GreatFind;persistent;true] Pushing the knight back.} 20.Nd2 g5 $1 {[%c_effect g5;square;g5;type;GreatFind;persistent;true]} 21.Nb3 Re8 ( 21...Bf6 {is more accurate.} 22.Nd4 Kh7 23.Bd2 {with roughly equal play.} ) 22.Nd4 Bd7 23.Bd2 $6 {[%c_effect d2;square;d2;type;Inaccuracy;persistent;true]} ( 23.h4 $1 {[%c_effect h4;square;h4;type;GreatFind;persistent;true] is unpleasant for Black due to a nice tactical idea after} 23...Qf6 $2 {[%c_effect f6;square;f6;type;Mistake;persistent;true]} ( 23...g4 {is better.} ) 24.hxg5 hxg5 25.Bxg5 $1 {[%c_effect g5;square;g5;type;GreatFind;persistent;true] This was probably missed—it was a bullet game, after all.} 25...Qxg5 26.Rxe7 $1 {[%c_effect e7;square;e7;type;GreatFind;persistent;true]} 26...Qxg3 27.Rxe8+ Bxe8 28.fxg3 {and White wins a pawn.} ) 23...Bf6 24.Qf3 Rxe2 25.Qxe2 c6 26.Qd3 Bg7 27.c4 {The characteristic of the game doesn't change: Black has the pair of bishops, but the white knight is well-placed. The position is balanced.} 27...Qf6 28.Bc3 Qg6 29.Ne2 Bf8 $5 {[%c_effect f8;square;f8;type;Interesting;persistent;true] A good move, avoiding the exchange. It looks dangerous to grant White the diagonal, but there is no reason to worry.} 30.Qd4 b6 31.a4 $1 {[%c_effect a4;square;a4;type;GreatFind;persistent;true] Creating threats on the queenside.} 31...Kf7 32.a5 c5 33.Qd2 $6 {[%c_effect d2;square;d2;type;Inaccuracy;persistent;true] Now Black gets some advantage.} ( 33.Qd5+ Qe6 34.Qb7 $1 {[%c_effect b7;square;b7;type;GreatFind;persistent;true] The position is equal. An illustrative variation ends in a draw by perpetual check:} 34...bxa5 35.Bxa5 Be7 36.Nc3 Qe1+ 37.Kh2 Qe5+ 38.Kg1 Qe1+ ) 33...Qe6 ( 33...f4 {is also good.} ) 34.axb6 axb6 35.b3 Bc6 {Black's position is more pleasant, but White holds everything until a fatal blunder is made.} 36.Ng3 f4 37.Nf1 d5 38.cxd5 Qxd5 39.f3 Qxd2 40.Nxd2 b5 41.Kf2 Ke6 42.Bb2 b4 43.c3 $2 {[%c_effect c3;square;c3;type;Mistake;persistent;true] The only big mistake in this game—quite an achievement considering the bullet time control. It's not clear how Black can win if White just makes a waiting move.} 43...Bg7 {Suddenly it's all over.} 44.Nb1 Bd5 $1 {[%c_effect d5;square;d5;type;GreatFind;persistent;true] The queenside collapses.} 45.c4 Bxb2 46.cxd5+ Kxd5 47.Nd2 ( 47.Ke2 c4 48.bxc4+ Kxc4 {and the b-pawn decides.} ) 47...Kd4 0-1